Cogmind - Beta 11.1 @@@ ROGUE MODE // 2022.09.07 @ 21:24:25 Player: Coronach Result: Destroyed by G-47 Trooper with Particle Gun Performance ------------- Evolutions (0) 0 Regions Visited (2) 400 Robots Destroyed (32) 160 Value Destroyed (623) 623 Prototype IDs (0) 0 Alien Tech Used (0) 0 Bonus (-88) -88 TOTAL SCORE: 1095 Bonus ------- High Alert Combat Kills 2 Friendly Fire -90 Cogmind --------- Core Integrity 0/250 Matter 300/300 Energy 265/265 System Corruption 0% Temperature Cool (9) Movement Rolling (115) Ox1 Location -10/Mines Parts ------- > --- POWER (1) -------- Improved Ion Engine > --- PROPULSION (2) --- Compact Wheel Compact Wheel > --- UTILITY (2) ------ Improved Heat Sink Large Storage Unit > --- WEAPON (2) ------- Beam Cannon Beam Cannon > --- INVENTORY (15) --- Light Ion Engine Compact Wheel High-capacity Storage Unit Structural Scanner Improved Terrain Scanner Seismic Detector Light Armor Plating Light Armor Plating Sensor Drone Bay Beam Cannon Bore Cannon Rocket Launcher Mining Laser Peak State ------------ > --- POWER ------------ Improved Ion Engine > --- PROPULSION ------- Light Treads Light Treads > --- UTILITY ---------- Large Storage Unit Improved Terrain Scanner > --- WEAPON ----------- Light Assault Rifle Rocket Launcher > --- INVENTORY -------- Improved Ion Engine Compact Wheel Large Storage Unit Transport Network Coupler Beam Cannon Beam Cannon Beam Cannon Beam Cannon Beam Cannon Assault Rifle Mining Laser [Rating: 12] Favorites ----------- Power Improved Ion Engine Engine Improved Ion Engine Propulsion Compact Wheel Treads Light Treads Leg Aluminum Leg Wheel Compact Wheel Utility Large Storage Unit Device Improved Terrain Scanner Storage Large Storage Unit Protection Light Armor Plating Weapon Beam Cannon Energy Cannon Beam Cannon Ballistic Gun Assault Rifle Launcher Rocket Launcher Special Weapon Mining Laser Build | -11 -10 -10 ------- Run | Scr Mat Min Slots Evolved . | . . . Power . | . . . Propulsion . | . . . Utility . | . . . Weapon . | . . . Parts Attached 45 | 3 20 22 Power 2 | . 1 1 Engine 2 | . 1 1 Core . | . . . Reactor . | . . . Propulsion 8 | 2 2 4 Treads 3 | 2 . 1 Leg . | . . . Wheel 5 | . 2 3 Hover . | . . . Flight . | . . . Utility 15 | 1 7 7 Device 10 | 1 3 6 Storage 3 | . 3 . Processor . | . . . Hackware . | . . . Protection 2 | . 1 1 Artifact . | . . . Weapon 20 | . 10 10 Energy Gun . | . . . Energy Cannon 6 | . . 6 Ballistic Gun 7 | . 5 2 Ballistic Cannon . | . . . Launcher 3 | . 2 1 Special Weapon 4 | . 3 1 Impact Weapon . | . . . Slashing Weapon . | . . . Piercing Weapon . | . . . Special Melee Weapon . | . . . Unidentified Prototypes . | . . . Parts Lost 2 | . 1 1 Power 1 | . . 1 Propulsion 1 | . 1 . Utility . | . . . Weapon . | . . . Highest Loss Streak 1 | . 1 1 To Critical Strikes . | . . . Average Slot Usage (%) 99 | . 99 99 Engine 13 | . 14 13 Treads 12 | . 22 . Wheel 15 | . 5 27 Device 13 | . 12 14 Storage 14 | . 15 14 Energy Cannon 11 | . . 24 Ballistic Gun 15 | . 26 1 Special Weapon 1 | . 1 1 Naked Turns . | . . . Heaviest Build 52 | 14 52 34 Greatest Support 40 | 40 40 32 Greatest Overweight (x) 3 | . 3 3 Average Overweight (x) . | . . . Largest Inventory Capacity 15 | 8 15 15 Average Capacity 14 | 8 13 15 Most Carried 15 | 6 15 15 Average Carried 12 | 3 12 12 Final Capacity 15 | 8 15 15 Final Carried 15 | 4 15 13 Class Distribution -------------------- 100% | Mutant Dominant Class ---------------- Mutant | -10/Materials Mutant | -10/Mines Resources | -11 -10 -10 ----------- Run | Scr Mat Min Matter Collected 884 | 238 364 282 Remotely . | . . . Salvage Created 1134 | 101 337 696 Parts 68 | 7 19 42 Haulers Intercepted 2 | . 2 . Recyclers Shooed 3 | . . 3 Parts Field Recycled . | . . . Retrieved Matter . | . . . Parts Self-Destructed . | . . . Prevented . | . . . Kills | -11 -10 -10 ------- Run | Scr Mat Min Combat Hostiles Destroyed 17 | . 9 8 Guns 4 | . 3 1 Cannons 5 | . . 5 AOE 8 | . 6 2 Classes Destroyed 8 | 2 3 3 Worker 1 | . . 1 Builder 3 | . . 3 Tunneler 2 | 1 . 1 Hauler 2 | . 2 . Recycler 6 | 1 . 5 Operator 1 | . . 1 Swarmer 6 | . 3 3 Grunt 11 | . 6 5 Best Kill Streak 6 | 2 3 6 Combat Bots Only 3 | . 3 3 Max Kills in Single Turn 2 | 1 2 2 Gunslinging . | . . . Exploded 2 | . 2 2 Melee . | . . . Uniques/NPCs Destroyed . | . . . Combat | -11 -10 -10 -------- Run | Scr Mat Min Damage Taken 739 | . 460 279 Core 255 | . 64 191 Absorbed by Shields . | . . . Core Remaining (%) 100 | 100 . . Volleys Fired 105 | 2 49 54 Largest 2 | 2 2 2 Hottest 120 | 40 100 120 Shots Fired 174 | 4 85 85 Gun 92 | 4 72 16 Cannon 46 | . . 46 Launcher 5 | . 4 1 Special 31 | . 9 22 Kinetic 92 | 4 72 16 Thermal 77 | . 9 68 Explosive 5 | . 4 1 Electromagnetic . | . . . Robot Hit Streak 14 | 4 14 9 Robot Miss Streak 3 | . 3 3 Penetration Max . | . . . Secondary Targets . | . . . Shots Hit Robots 90 | 4 47 39 Core Hits 48 | 2 24 22 Critical Kills 1 | . . 1 Critical Parts Destroyed . | . . . Critical Strikes 1 | . . 1 Meltdown 1 | . . 1 Melee Attacks . | . . . Impact . | . . . Slashing . | . . . Piercing . | . . . Sneak Attacks . | . . . Combat Hostiles . | . . . Follow-up Attacks . | . . . Damage Inflicted 1746 | 44 874 828 Guns 645 | 44 470 131 Cannons 525 | . . 525 Explosions 528 | . 404 124 Melee . | . . . Ramming . | . . . Kinetic 645 | 44 470 131 Thermal 644 | . . 644 Explosive 457 | . 404 53 Electromagnetic . | . . . Impact . | . . . Slashing . | . . . Piercing . | . . . Highest Corruption . | . . . Average Corruption . | . . . Corruption Purged . | . . . Corruption Blocked . | . . . Overload Shots . | . . . Overflow Damage . | . . . Projectiles . | . . . Explosions . | . . . Melee . | . . . Knockbacks . | . . . Impact . | . . . Kinetic . | . . . Secondary . | . . . Self-Inflicted Damage 60 | . . 60 Shots 2 | . . 2 Rammed . | . . . Targets Rammed . | . . . Kicked . | . . . Crushed . | . . . Highest Temperature 221 | . 72 221 Average Temperature 60 | . 19 91 Received Heat Transfer 414 | . 300 114 Siege Activations . | . . . Robots Corrupted . | . . . Combat Hostiles . | . . . Parts Fried . | . . . Impact Corruptions . | . . . Robots Melted 1 | . . 1 Combat Hostiles . | . . . Parts Melted 6 | . . 6 Heat Transferred 1310 | . . 1310 Parts Sabotaged . | . . . Parts Stolen . | . . . Parts Stripped . | . . . Power Chain Reactions . | . . . Missiles Intercepted . | . . . Alert | -11 -10 -10 ------- Run | Scr Mat Min Peak Influence 409 | 10 229 409 Initial 36 | . 6 36 Average 167 | 7 94 256 Maximum Alert Level 2 | . 1 2 Low Security (%) 52 | 100 90 9 Level 1 39 | . 9 74 Level 2 7 | . . 16 Level 3 . | . . . Level 4 . | . . . Level 5 . | . . . High Security . | . . . Max Security . | . . . Squads Dispatched . | . . . Investigation . | . . . Extermination . | . . . Reinforcement . | . . . Assault . | . . . Garrison . | . . . Intercept . | . . . Searches Triggered . | . . . Construction Impeded . | . . . Haulers Reinforced . | . . . Active Scanning Responses . | . . . Cargo Convoy Interrupts . | . . . Stealth | -11 -10 -10 --------- Run | Scr Mat Min Distress Signals . | . . . Communications Jammed . | . . . Distress Signals . | . . . Times Spotted 27 | . 18 9 Peak Tracking Total 5 | . 5 3 Tactical Retreats . | . . . Traps | -11 -10 -10 ------- Run | Scr Mat Min Traps Triggered . | . . . Indirectly . | . . . Trap Hack Attempts . | . . . Triggered . | . . . Disarmed . | . . . Reprogrammed . | . . . Reused . | . . . Traps Extracted . | . . . Installed . | . . . Triggered . | . . . Machines | -11 -10 -10 ---------- Run | Scr Mat Min Machines Disabled 8 | . . 8 Max in Single Turn 7 | . . 7 Machines Sabotaged . | . . . Garrisons Compromised . | . . . Overloaded Fab Kills . | . . . Hacking | -11 -10 -10 --------- Run | Scr Mat Min Machines Accessed 8 | . 7 1 Terminals 5 | . 5 . Fabricators . | . . . Repair Stations . | . . . Recycling Units 2 | . 2 . Scanalyzers . | . . . Garrison Access . | . . . Total Hacks 22 | . 21 1 Successful 16 | . 15 1 Failed 6 | . 6 . Catastrophic . | . . . Database Lockouts . | . . . Manual 14 | . 14 . Terminals 17 | . 17 . Fabricators . | . . . Repair Stations . | . . . Recycling Units 4 | . 4 . Scanalyzers . | . . . Garrison Access . | . . . Terminal Hacks 5 | . 4 1 Robot Analysis 1 | . 1 . Open Door 1 | . . 1 Alert Level 1 | . 1 . Locate Traps 1 | . 1 . Zone Layout 1 | . 1 . Fabricator Hacks . | . . . Repair Station Hacks . | . . . Recycling Unit Hacks 3 | . 3 . Report Inventory 2 | . 2 . Retrieve Components 1 | . 1 . Scanalyzer . | . . . Garrison Access Hacks . | . . . Unauthorized Hacks 8 | . 8 . Terminals 7 | . 7 . Assimilate 2 | . 2 . Botnet 5 | . 5 . Fabricators . | . . . Repair Stations . | . . . Recycling Units 1 | . 1 . Recyclers 1 | . 1 . Scanalyzers . | . . . Garrison Access . | . . . Data Cores Recovered . | . . . Used . | . . . Hacking Detections 7 | . 7 . Full Trace Events 2 | . 2 . Feedback Events . | . . . Feedback Blocked . | . . . Robot Schematics Acquired . | . . . Robots Built . | . . . Authchips . | . . . Time . | . . . Total Robot Build Rating . | . . . Part Schematics Acquired . | . . . Parts Built . | . . . Authchips . | . . . Time . | . . . Total Part Build Rating . | . . . Parts Repaired . | . . . Time . | . . . Parts Recycled . | . . . Recycled Matter . | . . . Retrieved Matter . | . . . Retrieved Components 2 | . 2 . Parts Scanalyzed . | . . . Part Schematics Acquired . | . . . Parts Damaged . | . . . Bothacking | -11 -10 -10 ------------ Run | Scr Mat Min Used RIF Installer . | . . . Robots Hacked . | . . . Non-combat . | . . . Combat . | . . . Robot Hacks Applied . | . . . Relay Couplers Released . | . . . Fabnet Peak Effective % . | . . . Robots Rewired . | . . . Allies Hacked . | . . . Hacks Repelled . | . . . Allies | -11 -10 -10 -------- Run | Scr Mat Min Total Allies 6 | . 1 5 Largest Group 5 | . 1 5 Highest-Rated Group 75 | . 10 75 Highest-Rated Ally 31 | . 10 31 Total Orders . | . . . Ally Attacks 5 | . . 5 Total Damage 43 | . . 43 Kills . | . . . Allies Corrupted 1 | . . 1 Allies Melted . | . . . Intel | -11 -10 -10 ------- Run | Scr Mat Min Robot Analysis Total 1 | . 1 . Derelict Logs Recovered 1 | . . 1 Drone Launches . | . . . Drone Recoveries . | . . . Exploration | -11 -10 -10 ------------- Run | Scr Mat Min Turns Passed 1844 | 32 961 851 Spaces Moved 1074 | 13 538 523 Core . | . . . Treads 318 | 13 303 2 Legs . | . . . Wheels 756 | . 235 521 Hover . | . . . Flight . | . . . Fastest Speed 90 | 160 90 90 Average Speed 127 | 160 138 114 Slowest Speed 240 | 160 240 240 Overloaded Moves . | . . . Propulsion Burnouts . | . . . Robots Hopped . | . . . Cave-ins Triggered . | . . . Exploration Rate (%) 60 | 2 94 84 Regions Visited 2 Branch Regions 1 Pre-discovered Areas . | . . . Known Exits Taken . | . . . Unknown Exits Taken 2 | 1 1 . Scrap Searched 1 | . . 1 Spaces Dug 9 | . 9 . Terrain Destroyed 70 | . 32 38 Melee . | . . . Projectile 10 | . 9 1 AOE 60 | . 23 37 Terrain Rammed . | . . . Walls Destroyed . | . . . Machines Disabled . | . . . Actions | -11 -10 -10 --------- Run | Scr Mat Min Total 1318 | 21 655 642 Wait 41 | . 14 27 Move 1072 | 12 537 523 Hop . | . . . Pick Up 29 | 1 22 6 Fast Attach 2 | 1 . 1 Attach 2 | . 1 1 Detach 1 | . . 1 Swap 41 | 2 19 20 Drop 25 | 3 13 9 Fire 105 | 2 49 54 Melee . | . . . Ram . | . . . Kick . | . . . Crush . | . . . Escape Stasis . | . . . Rewire . | . . . Trap . | . . . Miscellaneous . | . . . Route ------- -11/Scrapyard -10/Materials (discovered 4 exits: [*Mat x3] / *Min) -10/Mines (discovered 2 exits: [*Mat x2]) History --------- Turn | Location | Event 12 | -11/Scrapyard | Discovered new exit (range 2) 33 | -11/Scrapyard | Entered Materials 317 | -10/Materials | Build established: Mutant 368 | -10/Materials | Discovered new exit (range 13) 506 | -10/Materials | Discovered new exit (range 16) 555 | -10/Materials | Discovered new exit (range 12) 861 | -10/Materials | Discovered new exit (range 13) 994 | -10/Materials | Entered Mines 994 | -10/Mines | Accompanied by 1 ally 1021 | -10/Mines | Core integrity fell below 50% 1130 | -10/Mines | Discovered new exit (range 6) 1131 | -10/Mines | Learned 2 Materials zone layouts 1139 | -10/Mines | Discovered new exit (range 13) 1251 | -10/Mines | Core integrity fell below 20% 1306 | -10/Mines | A weapon hastily lodged in a ceiling crevice suddenly fell to the ground 1328 | -10/Mines | Assisted by bots powering up and referring to "LRC-V3" 1537 | -10/Mines | Found the Drone Emporium 1543 | -10/Mines | Found Prototype Device 1680 | -10/Mines | Excavation squad dispatched 1680 | -10/Mines | A large section of the Mines collapsed 1845 | -10/Mines | Destroyed by G-47 Trooper with Particle Gun Last Messages --------------- 01680_ Trooper 1a system terminally corrupted. 01708_ U-05 Engineer builds a Wall. 01711_ U-05 Engineer lays Concrete. 01774_ T-07 Excavator is excavating. 01777_ Acquired 10 matter. 01779_ U-05 Engineer lays Concrete. 01783_ T-07 Excavator is excavating. 01783_ Ion Engine melted. 01783_ G-34 Mercenary destroyed. 01784_ U-05 Engineer lays Concrete. 01787_ T-07 Excavator is excavating. 01787_ Acquired 36 matter. 01788_ U-05 Engineer lays Concrete. 01792_ T-07 Excavator is excavating. 01793_ G-34 Mercenary destroyed. 01798_ K-01 Serf collects debris. 01835_ Mercenary 1a destroyed. 01839_ Ion Engine melted. 01839_ Aluminum Leg melted. 01839_ G-34 Mercenary destroyed. Map ----- +----------------------------------------------------+ | ??????????????# #????????????????? | | ??????????????# #????????????????? | | ??????????????# #????????????????? | | ??????????????# #????????????????? | | ?????????????? ????????????????? | | ?????????????? ????????????????? | | ?????????????? ????????????????? | | ?????????????# ???????????????? | | ?????????????# < ???????????????? | | ?????????????# ???????????????? | | ?????????? ?# #???????????????? | | ?????? #? ??# #????????????????? | | ??? # ??????????????????????? | | ???? ##????????????????????? | | ???? ####### ?????????##?? | | ????# ??????? ## ? | | ????# ???????? | | ????# g#??????? | | ????? #???????? | | ?????# #????????? | | ?????# ??????????? | | ????## ??????????????# | | ??### #????????????????# | | ??# #?????????????????# | | ????? #??????????????????# | | ????????# @ #??????????????????## | | ????????## ##????????????????????? | | ?????????##%#?????????????????????? | | ??????????# #?????????????????????? | | ??????????# ########???????#??????? | | ??????????# #?###???#?????#? | | ??????????# ###### #?# ?#?###????# | | ??????????# #????# #?# #??# ##??## | | ??????????# #???## #?# #?? #?## | | ??????????# #????# #?# #?# #??# | | ??????????# #????# ### ## #?### | | ??????????# ????# #??## | | ??????????###???## %! #?## | | ?????????????????###### [ #### ### | | ??????????????????????# ####### # | | ?????????????????????## ##?# # | | ????????????????????#?# #??# # | | ??????????????#??????## #### " | | ????????????????#?????# ###%= ### | | ??????????????????????# = #### | | ??????????????????????# ###?? | | ????????????????#?????##########??? | | ????????????????????????????????#?? | | | | | +----------------------------------------------------+ Best States ------------- Heat Dissipation 39 Energy Generation 12 Energy Capacity 265 Matter Stores 300 Matter Capacity 300 Sight Range 16 Terrain Scan Range 16 Terrain Scan Density 10 Additional Mass Support 6 Armor Coverage 150 Evasion (%) 42 Recoil Reduction 2 Item Schematics ----------------- None Robot Schematics ------------------ None Fabricated ------------ Nothing Alien Tech Used ----------------- None Achievements -------------- None Challenges ------------ None Game ------ Seed GuidanceReinforcedScythe Manual? 0 Play Time 00:38:29 Cumulative 203.5 hours Start 2022.09.07 @ 20:47:18 End 2022.09.07 @ 21:24:25 Sessions 1 Manual Loads 0 Difficulty Rogue Special Mode None Game No. 71 Rogue 68 Adventurer 0 Explorer 3 Win Type - Total 3 Types 2/0/0/1/0/0/0/0/0 Lore% 45 Gallery% 66 Achievement% 49 Wizard Run 0 Options --------- ASCII 0 Keyboard 0 Movement Numpad Keybinds 0 Fullscreen 2 Font 18/X11 Map View 76x50 Tactical HUD 1 Map Filters NONE Filters NONE Steam 1 RUN: d6baee4f-2737-4bbf-980a-d5f28188dd7c